Cogmind - Beta 14 --- EXPLORER MODE // 2024.09.14 @ 13:08:19 Player: Wisdomtree Result: Destroyed by G-34 Mercenary with Small Laser Performance ------------- Evolutions (0) 0 Regions Visited (1) 200 Robots Destroyed (7) 35 Value Destroyed (224) 224 Prototype IDs (0) 0 Alien Tech Used (0) 0 Bonus (0) 0 TOTAL SCORE: 459 Bonus ------- None Cogmind --------- Core Integrity 0/250 Matter 274/300 Energy 250/250 System Corruption 2% Temperature Warm (127) Movement Walking (120) Location -10/Materials Parts ------- > --- POWER (1) -------- Ion Engine > --- PROPULSION (2) --- Aluminum Leg > --- UTILITY (3) ------ Structural Scanner Power Shielding > --- WEAPON (2) ------- Medium Laser Light Assault Rifle > --- INVENTORY (5) ---- Ion Engine Aluminum Leg Peak State ------------ > --- POWER ------------ Ion Engine > --- PROPULSION ------- Aluminum Leg Aluminum Leg > --- UTILITY ---------- Structural Scanner Improved Terrain Scanner > --- WEAPON ----------- Assault Rifle Assault Rifle > --- INVENTORY -------- (None) [Rating: 9] Favorites ----------- Power Ion Engine Engine Ion Engine Propulsion Aluminum Leg Leg Aluminum Leg Utility Structural Scanner Device Structural Scanner Protection Power Shielding Weapon Assault Rifle Energy Gun Medium Laser Ballistic Gun Assault Rifle Build | -11 -10 ------- Run | Yrd Mat Slots Evolved 1 | . 1 Power . | . . Propulsion . | . . Utility 1 | . 1 Weapon . | . . Parts Attached 17 | 6 11 Power 3 | 2 1 Engine 3 | 2 1 Core . | . . Reactor . | . . Propulsion 5 | 2 3 Treads . | . . Leg 5 | 2 3 Wheel . | . . Hover . | . . Flight . | . . Utility 3 | 1 2 Device 2 | 1 1 Storage . | . . Processor . | . . Hackware . | . . Protection 1 | . 1 Artifact . | . . Weapon 6 | 1 5 Energy Gun 1 | . 1 Energy Cannon . | . . Ballistic Gun 5 | 1 4 Ballistic Cannon . | . . Launcher . | . . Special Weapon . | . . Impact Weapon . | . . Slashing Weapon . | . . Piercing Weapon . | . . Special Melee Weapon . | . . Unidentified Prototypes . | . . Parts Lost 1 | . 1 Power . | . . Propulsion 1 | . 1 Utility . | . . Weapon . | . . Highest Loss Streak 1 | . 1 To Critical Strikes . | . . Average Slot Usage (%) 66 | . 66 Engine 11 | . 11 Leg 25 | . 25 Device 14 | . 14 Protection 7 | . 7 Ballistic Gun 7 | . 7 Peak Build Rating 9 | 5 9 Average Rating 5 | 3 5 On Entrance 2 | . 5 Naked Turns . | . . Heaviest Build 11 | 8 11 Greatest Support 20 | 20 20 Greatest Overweight (x) 3 | . 3 Average Overweight (x) . | . . Largest Inventory Capacity 5 | 5 5 Average Capacity 5 | 5 5 Most Carried 2 | . 2 Average Carried . | . . Final Capacity 5 | 5 5 Final Carried 2 | . 2 Class Distribution -------------------- 100% | Hacker-Mutant Dominant Class ---------------- Hacker-Mutant | -10/Materials Resources | -11 -10 ----------- Run | Yrd Mat Matter Collected 463 | 233 230 Remotely . | . . Salvage Created 265 | 34 231 Parts 19 | 2 17 Haulers Intercepted . | . . Recyclers Shooed . | . . Parts Field Recycled . | . . Retrieved Matter . | . . Parts Self-Destructed . | . . Prevented . | . . Kills | -11 -10 ------- Run | Yrd Mat Combat Hostiles Destroyed 6 | 1 5 Guns 6 | 1 5 Classes Destroyed 2 | 1 1 Tunneler 1 | . 1 Grunt 6 | 1 5 Best Kill Streak 3 | 1 3 Combat Bots Only 2 | 1 2 Max Kills in Single Turn 1 | 1 1 Gunslinging . | . . Exploded . | . . Melee . | . . Uniques/NPCs Destroyed . | . . Combat | -11 -10 -------- Run | Yrd Mat Hostile Shots Fired 142 | 2 140 Missed 50 | 1 49 Damage Taken 721 | 7 714 Core 250 | . 250 Absorbed by Shields . | . . Redirected to Shielding 14 | . 14 Ignored by Resistances 455 | 4 451 Regen/Repaired (Parts) 49 | . 49 Core Remaining (%) 100 | 100 . Volleys Fired 41 | 2 39 Largest 2 | 1 2 Hottest 70 | 20 70 Shots Fired 53 | 2 51 Gun 53 | 2 51 Cannon . | . . Launcher . | . . Special . | . . Kinetic 50 | 2 48 Thermal 3 | . 3 Explosive . | . . Electromagnetic . | . . Robot Hit Streak 24 | 2 24 Robot Miss Streak 1 | . 1 Penetration Max . | . . Secondary Targets . | . . Shots Hit Robots 51 | 2 49 Core Hits 16 | 2 14 Critical Kills . | . . Critical Parts Destroyed . | . . Critical Strikes . | . . Melee Attacks . | . . Impact . | . . Slashing . | . . Piercing . | . . Sneak Attacks . | . . Combat Hostiles . | . . Follow-up Attacks . | . . Damage Inflicted 640 | 25 615 Guns 625 | 25 600 Cannons . | . . Explosions . | . . Melee . | . . Ramming 15 | . 15 Kinetic 587 | 25 562 Thermal 38 | . 38 Explosive . | . . Electromagnetic . | . . Impact . | . . Slashing . | . . Piercing . | . . Highest Corruption 2 | . 2 Average Corruption 1 | . 1 Corruption Purged . | . . Corruption Blocked . | . . Effects 2 | . 2 Message Errors 1 | . 1 Data Loss (minor) 1 | . 1 Overload Shots . | . . Overflow Damage . | . . Projectiles . | . . Explosions . | . . Melee . | . . Knockbacks . | . . Impact . | . . Kinetic . | . . Secondary . | . . Self-Inflicted Damage . | . . Shots . | . . Rammed . | . . Targets Rammed 7 | . 7 Kicked 7 | . 7 Crushed . | . . Highest Temperature 121 | . 121 Average Temperature 24 | . 24 Received Heat Transfer 696 | 6 690 Siege Activations . | . . Robots Corrupted . | . . Combat Hostiles . | . . Parts Fried . | . . Impact Corruptions . | . . Robots Melted . | . . Combat Hostiles . | . . Parts Melted . | . . Heat Transferred 111 | . 111 Parts Sabotaged . | . . Parts Stolen . | . . Parts Stripped . | . . Power Chain Reactions . | . . Alert | -11 -10 ------- Run | Yrd Mat Peak Influence 147 | 20 147 Initial 9 | . 9 Average 59 | 3 66 Maximum Alert Level . | . . Low Security (%) 100 | 100 100 Level 1 . | . . Level 2 . | . . Level 3 . | . . Level 4 . | . . Level 5 . | . . High Security . | . . Max Security . | . . Squads Dispatched 1 | . 1 Investigation 1 | . 1 Extermination . | . . Reinforcement . | . . Assault . | . . Garrison . | . . Intercept . | . . Searches Triggered . | . . Construction Impeded . | . . Haulers Reinforced . | . . Active Scanning Responses . | . . Cargo Convoy Interrupts . | . . Stealth | -11 -10 --------- Run | Yrd Mat Distress Signals 1 | . 1 Communications Jammed . | . . Distress Signals . | . . Times Spotted 16 | 1 15 Peak Tracking Total 9 | 1 9 Tactical Retreats 3 | . 3 Traps | -11 -10 ------- Run | Yrd Mat Traps Triggered 4 | . 4 Indirectly . | . . Trap Hack Attempts . | . . Triggered . | . . Disarmed 1 | . 1 Reprogrammed . | . . Reused . | . . Traps Extracted . | . . Installed . | . . Triggered . | . . Machines | -11 -10 ---------- Run | Yrd Mat Machines Disabled . | . . Max in Single Turn . | . . Machines Repaired . | . . Machines Dismantled . | . . Machines Sabotaged . | . . Overloaded Fab Kills . | . . Hacking | -11 -10 --------- Run | Yrd Mat Machines Accessed 6 | . 6 Terminals 5 | . 5 Fabricators . | . . Repair Stations 1 | . 1 Recycling Units . | . . Scanalyzers . | . . Garrison Access . | . . Total Hacks 15 | . 15 Successful 7 | . 7 Failed 8 | . 8 Catastrophic 2 | . 2 Database Lockouts . | . . Manual 12 | . 12 Terminals 13 | . 13 Fabricators . | . . Repair Stations 2 | . 2 Recycling Units . | . . Scanalyzers . | . . Garrison Access . | . . Terminal Hacks 5 | . 5 Robot Analysis 1 | . 1 Branch Access Points 1 | . 1 Locate Traps 1 | . 1 Disarm Traps 1 | . 1 Zone Layout 1 | . 1 Fabricator Hacks . | . . Repair Station Hacks 2 | . 2 Scan Component 1 | . 1 Repair 1 | . 1 Recycling Unit Hacks . | . . Scanalyzer . | . . Garrison Access Hacks . | . . Unauthorized Hacks . | . . Terminals . | . . Fabricators . | . . Repair Stations . | . . Recycling Units . | . . Scanalyzers . | . . Garrison Access . | . . Data Cores Recovered . | . . Used . | . . Hacking Detections 6 | . 6 Full Trace Events 2 | . 2 Feedback Events . | . . Feedback Blocked . | . . Robot Schematics Acquired . | . . Robots Built . | . . Authchips . | . . Time . | . . Total Robot Build Rating . | . . Part Schematics Acquired . | . . Parts Built . | . . Authchips . | . . Time . | . . Total Part Build Rating . | . . Parts Repaired 1 | . 1 Time 26 | . 26 Parts Recycled . | . . Recycled Matter . | . . Retrieved Matter . | . . Retrieved Components . | . . Parts Scanalyzed . | . . Part Schematics Acquired . | . . Parts Damaged . | . . Bothacking | -11 -10 ------------ Run | Yrd Mat Used RIF Installer . | . . Robots Hacked . | . . Non-combat . | . . Combat . | . . Robot Hacks Applied . | . . Relay Couplers Released . | . . Fabnet Peak Effective % . | . . Robots Rewired . | . . Allies Hacked . | . . Hacks Repelled . | . . Allies | -11 -10 -------- Run | Yrd Mat Total Allies . | . . Largest Group . | . . Highest-Rated Group . | . . Highest-Rated Ally . | . . Total Orders . | . . Ally Attacks . | . . Total Damage . | . . Kills . | . . Allies Corrupted . | . . Allies Melted . | . . Intel | -11 -10 ------- Run | Yrd Mat Robot Analysis Total 1 | . 1 Derelict Logs Recovered . | . . Drone Launches . | . . Drone Recoveries . | . . Exploration | -11 -10 ------------- Run | Yrd Mat Turns Passed 704 | 79 625 Spaces Moved 453 | 62 391 Core 17 | 15 2 Treads . | . . Legs 436 | 47 389 Wheels . | . . Hover . | . . Flight . | . . Fastest Speed 50 | 50 100 Average Speed 117 | 103 120 Slowest Speed 200 | 120 200 Overloaded Moves . | . . Propulsion Burnouts . | . . Robots Hopped . | . . Cave-ins Triggered . | . . Exploration Rate (%) 43 | 5 81 Regions Visited 1 Branch Regions . Pre-discovered Areas . | . . Known Exits Taken 1 | 1 . Unknown Exits Taken . | . . Scrap Searched . | . . Spaces Dug . | . . Terrain Destroyed . | . . Melee . | . . Projectile . | . . AOE . | . . Terrain Rammed . | . . Walls Destroyed . | . . Machines Disabled . | . . Actions | -11 -10 --------- Run | Yrd Mat Total 564 | 73 491 Wait 41 | 2 39 Move 452 | 61 391 Hop . | . . Pick Up 1 | . 1 Fast Attach 17 | 6 11 Attach . | . . Detach 3 | 1 2 Swap . | . . Drop 2 | 1 1 Fire 41 | 2 39 Melee . | . . Ram . | . . Kick 7 | . 7 Crush . | . . Escape Stasis . | . . Rewire . | . . Trap . | . . Miscellaneous . | . . Route ------- -11/Scrapyard -10/Materials (discovered 4 exits: *Mat x3 / *Min) History --------- Turn | Location | Event 2 | -11/Scrapyard | Met Revision 17 55 | -11/Scrapyard | Identified exit to Materials 55 | -11/Scrapyard | Discovered exit to Materials (range 8) 80 | -11/Scrapyard | Entered Materials 80 | -10/Materials | Evolved 1 slot: Utility x1 96 | -10/Materials | Identified exit to Mines 302 | -10/Materials | Build established: Hacker-Mutant 379 | -10/Materials | Repaired Ion Engine 518 | -10/Materials | Identified exit to Materials 518 | -10/Materials | Discovered exit to Materials (range 8) 582 | -10/Materials | Core integrity fell below 50% 629 | -10/Materials | Discovered exit to Materials (range 15) 634 | -10/Materials | Core integrity fell below 20% 685 | -10/Materials | Discovered exit to Materials (range 10) 705 | -10/Materials | Destroyed by G-34 Mercenary with Small Laser Last Messages --------------- 00617_ Acquired 11 matter. 00629_ EXIT=FOUND: MATERIALS 00634_ U-05 Engineer builds a Door. 00666_ Triggered Shock Trap. 00666_ The floor emits a surge of raw power. 00666_ System corrupted (+1). 00679_ Connecting with Terminal... >>Traps(Locate) Found 1 trap in 1 array: 1x Shock Trap Map updated. >>Traps(Disarm) Disarmed 1 Shock Trap. 00685_ EXIT=FOUND: MATERIALS 00687_ Connecting with Terminal... 00691_ Acquired Med. Laser. 00696_ Acquired Lgt. Assault Rifle. 00696_ Critical hit (Burn: +37). 00700_ Aluminum Leg destroyed. 00705_ System corrupted: Component data lost. Map ----- +----------------------------------------------------+ | > / ### ######### ##?? | | ##### ### ##?????## ##?? | | ####### ##+#+##### ### ######### ##?? | | ############### ### !## ######## ##?? | | ## ##### """ ########### ##?? | | ## """ ##?## "Y" ########### ######## ##?? | | ## """ ##?## ##???????############# ###? | | # """ ##?## ##????????############ ###? | | # ##?## ##???????????## ### ##? | | %+ """ ##?##########???????????## ##? | | # """ ##?##########???????????## ### ##? | | # """ ##??????????????????????### #####+###? | | ## ##??????????????????????### ##### ## | | ############???????????????????????## ##?## ## | | ########??????##### ####### ##### ## | | ##????????????########+#########/##### =## | | ##???????????? # ## ## | | ##???????????? # ## ## | | ##???????????????? # * ## ## | | ##????????????????####/### / ####### | | ##????????????????## gg ## # "T" ####### | | ##????????????????## ## # """ ##????? | | #######????????????????## ## #########????? | | #######???????????????? + g# #########???? | | ???????????????????????## g/ T" ##???? | | ?????????????????? ????##@ # " < ##???? | | ???????????????????????## ! # ##???? | | ???????????????????????## # ###+#####???? | | ???????????????????????## ####### ##???? | | ???????????????????????############# ??????????? | | ???????????????????????########????????????????? | | ???????????????????????????????????????????????? | | ???????????????????????????????????????????????? | | ???????????????????????????????????????????????? | | ???????????????????????????????????????????????? | | ???????????????????????????????????????????????? | | ???????????????????????????????????????????????? | | | | | | | | | | | | | | | | | | | | | | | | | | | +----------------------------------------------------+ Best States ------------- Heat Dissipation 25 Energy Generation 10 Energy Capacity 250 Matter Stores 300 Matter Capacity 300 Sight Range 16 Terrain Scan Range 16 Terrain Scan Density 10 Resistance: KI 35 Resistance: TH 35 Resistance: EX 35 Resistance: EM 35 Resistance: I 35 Resistance: S 35 Resistance: P 35 Power Shielding 33 Evasion (%) 55 Offensive Hacking 20 Item Schematics ----------------- None Robot Schematics ------------------ None Fabricated ------------ Nothing Alien Tech Used ----------------- None Achievements -------------- None Challenges ------------ None Game ------ Seed DisassembledStealthDriver Manual? 0 Play Time 00:16:28 Cumulative 19.7 hours Start 2024.09.14 @ 12:52:31 End 2024.09.14 @ 13:08:19 Sessions 1 Manual Loads 0 Difficulty Explorer Special Mode None Game No. 10 Rogue 0 Adventurer 0 Explorer 10 Win Type - Total 0 Types 0/0/0/0/0/0/0/0/0 Lore% 10 Gallery% 17 Achievement% 20 Wizard Run 0 Options --------- Layout 1 ASCII 0 Keyboard 1 Movement Numpad Keybinds 0 Fullscreen 1 Font 32/SmallcapsGlow Map View 50x40 Zoom Use 0% Tactical HUD 1 Map Filters NONE Filters NONE Steam 1 RUN: 83de4a61-1a5f-4f09-81d3-5e3737f0d7b3